Cogmind - Beta 15 @@@ ROGUE MODE // 2025.07.25 @ 21:31:05 Player: H3-RMN Result: Destroyed by D-53 Grenadier with Mini Grenade Launcher Performance ------------- Evolutions (0) 0 Regions Visited (2) 400 Robots Destroyed (29) 145 Value Destroyed (562) 562 Prototype IDs (0) 0 Alien Tech Used (0) 0 Bonus (-73) -73 TOTAL SCORE: 1034 Bonus ------- Friendly Fire -73 Cogmind --------- Core Integrity 0/250 Matter 189/300 Energy 100/100 System Corruption 0% Temperature Cool (0) Movement Walking (120) Location -10/Mines Parts ------- > --- POWER (1) -------- (None) > --- PROPULSION (2) --- Aluminum Leg > --- UTILITY (2) ------ Small Storage Unit Improved Targeting Computer > --- WEAPON (2) ------- (None) > --- INVENTORY (8) ---- Huge Storage Unit Hacking Suite Trap Extractor (2/4 Blade) EM Pulse Gun Assault Rifle Assault Rifle Grenade Launcher Datajack Peak State ------------ > --- POWER ------------ Light Ion Engine > --- PROPULSION ------- Aluminum Leg Aluminum Leg > --- UTILITY ---------- Small Storage Unit Improved Terrain Scanner > --- WEAPON ----------- Medium Laser Small Laser > --- INVENTORY -------- Light Ion Engine EM Pulse Gun [Rating: 9] Favorites ----------- Power Ion Engine Engine Ion Engine Propulsion Aluminum Leg Leg Aluminum Leg Utility Small Storage Unit Device Seismic Detector Storage Small Storage Unit Processor Improved Targeting Computer Protection Core Shielding Weapon Medium Laser Energy Gun Medium Laser Ballistic Gun Assault Rifle Special Weapon Mining Laser Impact Weapon Hammer Special Melee Weapon Datajack Build | -11 -10 -10 ------- Run | Yrd Mat Min Slots Evolved . | . . . Power . | . . . Propulsion . | . . . Utility . | . . . Weapon . | . . . Parts Attached 27 | 8 18 1 Power 4 | 1 3 . Engine 4 | 1 3 . Core . | . . . Reactor . | . . . Propulsion 7 | 2 5 . Treads . | . . . Leg 7 | 2 5 . Wheel . | . . . Hover . | . . . Flight . | . . . Utility 6 | 3 3 . Device 3 | 2 1 . Storage 1 | 1 . . Processor 1 | . 1 . Hackware . | . . . Protection 1 | . 1 . Artifact . | . . . Weapon 10 | 2 7 1 Energy Gun 3 | 2 . 1 Energy Cannon . | . . . Ballistic Gun 4 | . 4 . Ballistic Cannon . | . . . Launcher . | . . . Special Weapon 1 | . 1 . Impact Weapon 1 | . 1 . Slashing Weapon . | . . . Piercing Weapon . | . . . Special Melee Weapon 1 | . 1 . Unidentified Prototypes . | . . . Parts Lost 8 | . 4 4 Power 2 | . 1 1 Propulsion 1 | . . 1 Utility 1 | . 1 . Weapon 4 | . 2 2 Highest Loss Streak 4 | . 3 4 To Critical Strikes . | . . . Average Backups 7 | 1 7 8 Power . | . . . Propulsion . | . . . Utility 2 | . 2 3 Weapon 3 | 1 3 4 Tool/Special . | . . . Unused Backups 12 | . 7 5 Power . | . . . Propulsion 3 | . 3 . Utility 3 | . 1 2 Weapon 5 | . 2 3 Tool/Special 1 | . 1 . Average Slot Usage (%) 99 | . 99 95 Engine 13 | . 14 11 Leg 27 | . 28 26 Device 1 | . 1 . Storage 14 | . 14 14 Processor 3 | . 2 14 Protection 8 | . 9 . Energy Gun 10 | . 11 1 Ballistic Gun 12 | . 11 26 Impact Weapon 2 | . 3 . Special Melee Weapon 2 | . 2 . Peak Build Rating 9 | 9 9 9 Average Rating 7 | 6 7 8 On Entrance 5 | . 7 9 Naked Turns . | . . . Heaviest Build 15 | 12 15 14 Greatest Support 20 | 20 20 20 Greatest Overweight (x) . | . . . Average Overweight (x) . | . . . Largest Inventory Capacity 8 | 8 8 8 Average Capacity 7 | 7 8 8 Most Carried 8 | 4 8 8 Average Carried 7 | 1 7 8 Final Capacity 8 | 8 8 8 Final Carried 8 | 4 8 8 Class Distribution -------------------- 97% | Mutant Dominant Class ---------------- Mutant | -10/Materials Mutant | -10/Mines Resources | -11 -10 -10 ----------- Run | Yrd Mat Min Matter Collected 580 | 280 300 . Remotely . | . . . Salvage Created 995 | 85 900 10 Parts 55 | 5 50 . Haulers Intercepted 2 | . 2 . Recyclers Shooed 1 | 1 . . Parts Field Recycled . | . . . Retrieved Matter . | . . . Parts Self-Destructed . | . . . Prevented . | . . . Kills | -11 -10 -10 ------- Run | Yrd Mat Min Combat Hostiles Destroyed 18 | . 17 1 Melee 1 | . 1 . Guns 14 | . 13 1 Classes Destroyed 9 | 2 6 1 Worker 2 | . 2 . Tunneler 1 | 1 . . Hauler 2 | . 2 . Recycler 2 | 1 1 . Operator 2 | . 2 . Watcher 3 | . 3 . Swarmer 6 | . 6 . Grunt 11 | . 11 . Assembled 1 | . . 1 Best Kill Streak 6 | 1 6 1 Combat Bots Only 3 | . 3 1 Max Kills in Single Turn 1 | 1 1 1 Gunslinging . | . . . Exploded . | . . . Melee 1 | . 1 . Uniques/NPCs Destroyed . | . . . Combat | -11 -10 -10 -------- Run | Yrd Mat Min Hostile Shots Fired 104 | . 73 31 Missed 23 | . 17 6 Hits 81 | . 56 25 Projectile 81 | . 56 25 AOE 9 | . . 9 Damage Taken 1096 | . 575 521 Core 251 | . 124 127 Absorbed by Shields . | . . . Redirected to Shielding 5 | . 5 . Core Remaining (%) 100 | 100 . . Volleys Fired 117 | 6 91 20 Largest 2 | 2 2 2 Hottest 100 | 90 100 60 Shots Fired 211 | 12 159 40 Gun 210 | 12 158 40 Cannon . | . . . Launcher . | . . . Special 1 | . 1 . Kinetic 105 | . 68 37 Thermal 103 | 12 91 . Explosive . | . . . Electromagnetic 3 | . . 3 Robot Hit Streak 16 | 5 16 5 Robot Miss Streak 5 | 2 4 5 Penetration Max . | . . . Secondary Targets . | . . . Shots Hit Robots 147 | 7 119 21 Core Hits 50 | 3 37 10 Critical Kills 2 | . 2 . Critical Parts Destroyed 4 | . 3 1 Critical Strikes 10 | . 9 1 Burn 4 | . 4 . Destroy 3 | . 2 1 Smash 3 | . 3 . Melee Attacks 36 | . 36 . Impact 34 | . 34 . Slashing . | . . . Piercing . | . . . Sneak Attacks 3 | . 3 . Combat Hostiles . | . . . Follow-up Attacks . | . . . Damage Inflicted 1862 | 83 1478 301 Guns 1530 | 83 1146 301 Cannons . | . . . Explosions . | . . . Melee 332 | . 332 . Ramming . | . . . Kinetic 715 | . 442 273 Thermal 787 | 83 704 . Explosive . | . . . Electromagnetic 28 | . . 28 Impact 332 | . 332 . Slashing . | . . . Piercing . | . . . Highest Corruption . | . . . Average Corruption . | . . . Corruption Purged . | . . . Corruption Blocked . | . . . Overload Shots . | . . . Overflow Damage 152 | . 152 . Projectiles . | . . . Explosions . | . . . Melee 152 | . 152 . Knockbacks 3 | . 3 . Impact 3 | . 3 . Kinetic . | . . . Secondary . | . . . Self-Inflicted Damage . | . . . Shots . | . . . Rammed . | . . . Targets Rammed . | . . . Kicked . | . . . Crushed . | . . . Highest Temperature 170 | 120 170 2 Average Temperature 49 | 51 49 2 Received Heat Transfer 261 | . 246 15 Siege Activations . | . . . Martial Activations . | . . . Shielding Activations . | . . . Robots Disrupted . | . . . Combat Hostiles . | . . . Robots Corrupted 4 | . 4 . Combat Hostiles 3 | . 3 . Parts Fried 9 | . 9 . Impact Corruptions 6 | . 6 . Robots Melted . | . . . Combat Hostiles . | . . . Parts Melted 6 | 1 5 . Heat Transferred 2461 | 235 2226 . Parts Sabotaged . | . . . Parts Stolen . | . . . Parts Stripped . | . . . Power Chain Reactions . | . . . Alert | -11 -10 -10 ------- Run | Yrd Mat Min Maximum Alert Level . | . . . Low Security (%) 100 | 100 100 100 Level 1 . | . . . Level 2 . | . . . Level 3 . | . . . Level 4 . | . . . Level 5 . | . . . High Security . | . . . Max Security . | . . . Peak Influence 164 | 5 164 . Initial . | . . . Average 53 | 2 58 . Influence Increases 548 | 10 538 . Destroy 0b10 Robot/C 340 | . 340 . Destroy 0b10 Robot/NC 60 | 10 50 . Destroy Leader 70 | . 70 . Successful Hack 32 | . 32 . Disable Machine 15 | . 15 . Destroy Structure 1 | . 1 . Lose Combat Pursuer 30 | . 30 . Influence Decreases 548 | 10 538 . Time Decay 508 | 10 498 . Lost Part 40 | . 40 . Squads Dispatched 3 | . 3 . Investigation 1 | . 1 . Extermination . | . . . Reinforcement 2 | . 2 . Assault . | . . . Garrison . | . . . Intercept . | . . . Searches Triggered . | . . . Construction Impeded . | . . . Haulers Reinforced . | . . . Active Scanning Responses . | . . . Cargo Convoy Interrupts . | . . . Stealth | -11 -10 -10 --------- Run | Yrd Mat Min Distress Signals 3 | . 3 . Communications Jammed . | . . . Distress Signals . | . . . Times Spotted 47 | . 36 11 Peak Tracking Total 4 | . 4 4 Tactical Retreats 3 | . 2 1 Traps | -11 -10 -10 ------- Run | Yrd Mat Min Traps Triggered 1 | . 1 . Indirectly . | . . . Trap Hack Attempts 27 | . 27 . Triggered . | . . . Disarmed 5 | . 5 . Reprogrammed 2 | . 2 . Reused . | . . . Traps Extracted 2 | . 2 . Installed . | . . . Triggered . | . . . Most Traps Carried 2 | . 2 2 Machines | -11 -10 -10 ---------- Run | Yrd Mat Min Machines Disabled 1 | . 1 . Max in Single Turn 1 | . 1 . Machines Repaired . | . . . Machines Dismantled . | . . . Machines Sabotaged . | . . . Overloaded Fab Kills . | . . . Hacking | -11 -10 -10 --------- Run | Yrd Mat Min Machines Accessed 8 | . 8 . Terminals 6 | . 6 . Fabricators . | . . . Repair Stations . | . . . Recycling Units 2 | . 2 . Scanalyzers . | . . . Garrison Access . | . . . Total Hacks 34 | . 34 . Successful 14 | . 14 . Failed 20 | . 20 . Catastrophic 3 | . 3 . Database Lockouts . | . . . Manual 25 | . 25 . Terminals 28 | . 28 . Fabricators . | . . . Repair Stations . | . . . Recycling Units 6 | . 6 . Scanalyzers . | . . . Garrison Access . | . . . Terminal Hacks 5 | . 5 . Part Schematic 2 | . 2 . Robot Analysis 1 | . 1 . Locate Traps 1 | . 1 . Disarm Traps 1 | . 1 . Fabricator Hacks . | . . . Repair Station Hacks . | . . . Recycling Unit Hacks 3 | . 3 . Report Inventory 2 | . 2 . Retrieve Components 1 | . 1 . Scanalyzer . | . . . Garrison Access Hacks . | . . . Unauthorized Hacks 6 | . 6 . Terminals 6 | . 6 . Botnet 1 | . 1 . Skim 5 | . 5 . Fabricators . | . . . Repair Stations . | . . . Recycling Units . | . . . Scanalyzers . | . . . Garrison Access . | . . . Data Cores Recovered 1 | . 1 . Used . | . . . Hacking Detections 8 | . 8 . Full Trace Events 1 | . 1 . Feedback Events . | . . . Feedback Blocked . | . . . Robot Schematics Acquired . | . . . Robots Built . | . . . Authchips . | . . . Time . | . . . Total Robot Build Rating . | . . . Part Schematics Acquired 2 | . 2 . Parts Built . | . . . Authchips . | . . . Time . | . . . Total Part Build Rating . | . . . Parts Repaired . | . . . Time . | . . . Parts Recycled . | . . . Recycled Matter . | . . . Retrieved Matter . | . . . Retrieved Components 2 | . 2 . Parts Scanalyzed . | . . . Part Schematics Acquired . | . . . Parts Damaged . | . . . Bothacking | -11 -10 -10 ------------ Run | Yrd Mat Min Used RIF Installer . | . . . Robots Hacked 1 | . 1 . Non-combat 1 | . 1 . Combat . | . . . Robot Hacks Applied 1 | . 1 . parse_system 1 | . 1 . Relay Couplers Released . | . . . Fabnet Peak Effective % . | . . . Robots Rewired . | . . . Allies Hacked . | . . . Hacks Repelled . | . . . Allies | -11 -10 -10 -------- Run | Yrd Mat Min Total Allies . | . . . Largest Group . | . . . Highest-Rated Group . | . . . Highest-Rated Ally . | . . . Total Orders . | . . . Ally Attacks . | . . . Total Damage . | . . . Kills . | . . . Allies Corrupted . | . . . Allies Melted . | . . . Intel | -11 -10 -10 ------- Run | Yrd Mat Min Active Infowar (turns) 254 | 37 217 . Terrain 25 | 25 . . Seismic 229 | 12 217 . Robot Analysis Total 1 | . 1 . Derelict Logs Recovered . | . . . Drone Launches . | . . . Drone Recoveries . | . . . Exploration | -11 -10 -10 ------------- Run | Yrd Mat Min Turns Passed 1865 | 84 1690 91 Spaces Moved 879 | 46 809 24 Core 6 | 6 . . Treads . | . . . Legs 873 | 40 809 24 Wheels . | . . . Hover . | . . . Flight . | . . . Fastest Speed 50 | 50 120 120 Average Speed 119 | 110 120 120 Slowest Speed 120 | 120 120 120 Overloaded Moves . | . . . Propulsion Burnouts . | . . . Robots Hopped . | . . . Potential Cave-ins . | . . . Cave-ins Triggered . | . . . Exploration Rate (%) 34 | 4 91 7 Regions Visited 2 Branch Regions 1 Pre-discovered Areas 1 | . 1 . Known Exits Taken . | . . . Unknown Exits Taken 2 | 1 1 . Scrap Searched . | . . . Spaces Dug . | . . . Terrain Destroyed . | . . . Melee . | . . . Projectile . | . . . AOE . | . . . Terrain Rammed . | . . . Walls Destroyed . | . . . Machines Disabled . | . . . Actions | -11 -10 -10 --------- Run | Yrd Mat Min Total 1436 | 63 1327 46 Wait 305 | . 305 . Move 877 | 45 808 24 Hop . | . . . Pick Up 21 | 4 17 . Fast Attach 10 | 7 3 . Attach 4 | . 4 . Detach . | . . . Swap 19 | 1 16 2 Drop 20 | . 20 . Fire 117 | 6 91 20 Melee 36 | . 36 . Ram . | . . . Kick . | . . . Crush . | . . . Escape Stasis . | . . . Rewire . | . . . Trap 27 | . 27 . Miscellaneous . | . . . Route ------- -11/Scrapyard -10/Materials (discovered 6 exits: *Mat x3 / [*Min x2] / *Sub) -10/Mines (discovered 4 exits: Mat x2 / Exi / Sub) History --------- Turn | Location | Event 3 | -11/Scrapyard | Discovered new exit (range 15) 85 | -11/Scrapyard | Entered Materials 333 | -10/Materials | Lost 3 parts (1p1u1w) 370 | -10/Materials | Build established: Mutant 466 | -10/Materials | Discovered new exit (range 7) 500 | -10/Materials | Discovered new exit (range 10) 781 | -10/Materials | Discovered new exit (range 10) 872 | -10/Materials | Discovered new exit (range 16) 1349 | -10/Materials | Discovered new exit (range 11) 1479 | -10/Materials | Discovered new exit (range 9) 1553 | -10/Materials | Learned 4 Recycling zone layouts 1598 | -10/Materials | Learned location of 2 exits from Mines 1634 | -10/Materials | Learned location of Storage (-7) 1660 | -10/Materials | Learned location of 2 exits from Mines 1680 | -10/Materials | Learned location of 1 exit from Recycling 1693 | -10/Materials | Learned Storage terminal intel 1716 | -10/Materials | Learned Storage emergency access door positions 1775 | -10/Materials | Entered Mines 1776 | -10/Mines | Identified exit to Materials 1776 | -10/Mines | Identified exit to Exiles 1776 | -10/Mines | Identified exit to Subcaves 1793 | -10/Mines | Assembled infested the area 1798 | -10/Mines | Assisted by a Guerilla fighting off Assembled 1799 | -10/Mines | Core integrity fell below 50% 1861 | -10/Mines | Core integrity fell below 20% 1866 | -10/Mines | Destroyed by D-53 Grenadier with Mini Grenade Launcher Last Messages --------------- 01813_ HV Slug penetrates as-04162. 01813_ as-04162 suffers critical hit (Destroy). 01815_ HV Slug penetrates as-52587. 01815_ as-52587 suffers critical hit (Destroy). 01815_ as-52587 destroyed. 01819_ HV Slug penetrates Wall. 01821_ as-90134 destroyed. 01821_ as-43249 knocked back. 01823_ IV-HMP(h) heat short circuits Flexi-carbon Leg. 01823_ as-05980 knocked back. 01826_ IV-HMP(h) destroyed. 01842_ as-43249 suffers critical hit (Destroy). 01842_ Destroyed Asb. Rifle. 01847_ Ion Engine destroyed. 01847_ as-92760 destroyed. 01847_ as-43249 destroyed. 01849_ as-41487 destroyed. 01858_ Aluminum Leg destroyed. 01863_ The unstable cave ceiling collapses. 01865_ Assault Rifle destroyed. Map ----- +----------------------------------------------------+ | ????????????????????????????????????????????????? | | ????????????????????????????????????????????????? | | ????????????????????????????????????????????????? | | ????????????????????????????????????????????????? | | ????????????????????????????????????????????????? | | ????????????????????????????????????????????????? | | ????????????????????????????????????????????????? | | ????????????????????????????????????????????????? | | ????????????????????????????????????????????????? | | ????????????????????????????????????????????????? | | ????????????????????????????????????????????????? | | ????????????????????????????????????????????????? | | ?????????????????????????######?????????????????? | | ????????????????????????## ##????????????????? | | ????????????????????????# #????????????????? | | ????????????????????????# #????????????????? | | ????????????????????????# #????????????????? | | ????????????????????????## ##????????????????? | | ?????????????????????????## ###?????????????????? | | ????????????????????????### #???????????????????? | | ??????????????????????### #???????????????????? | | ?????????????????????## ###??????????????????? | | ?????????????????????# ##?????????????????? | | ????????????????????## #?????????????????? | | ????????????????????# #?????????????????? | | ????????????????????# @ #?????????????????? | | ????????????????????# ##????????????????? | | ????????????????????# d ##???????????????? | | ????????????????????## %## ###?????????? | | ??????????????????##### #d = ##????????? | | ??????????????????# t [%== % "?????? | | ??????????????????# ####### % *[ % %#?????? | | ????????????????????????? #?????????? | | ????????????????????????##### ### #?????????? | | ?????????????????????????????###???####?????????? | | ????????????????????????????????????????????????? | | ????????????????????????????????????????????????? | | ????????????????????????????????????????????????? | | ????????????????????????????????????????????????? | | ????????????????????????????????????????????????? | | ????????????????????????????????????????????????? | | ????????????????????????????????????????????????? | | ????????????????????????????????????????????????? | | ????????????????????????????????????????????????? | | ????????????????????????????????????????????????? | | ????????????????????????????????????????????????? | | ????????????????????????????????????????????????? | | ????????????????????????????????????????????????? | | ????????????????????????????????????????????????? | | ????????????????????????????????????????????????? | +----------------------------------------------------+ Best States ------------- Heat Dissipation 25 Energy Generation 10 Energy Capacity 250 Matter Stores 300 Matter Capacity 300 Sight Range 16 Terrain Scan Range 16 Terrain Scan Density 10 Core Shielding 20 Evasion (%) 55 Targeting Accuracy 6 Trap Extractor Capacity 4 Item Schematics ----------------- Hcp. Storage Unit | -10/Materials | Hacked Huge Storage Unit | -10/Materials | Hacked Robot Schematics ------------------ None Fabricated ------------ Nothing Repaired ---------- Nothing Alien Tech Used ----------------- None Achievements -------------- None Challenges ------------ None Game ------ Seed RapidRelaySpecial Manual? 0 Play Time 00:17:03 Cumulative 751.4 hours Start 2025.07.25 @ 21:13:48 End 2025.07.25 @ 21:31:05 Sessions 1 Manual Loads 0 Difficulty Rogue Special Mode None Game No. 284 Rogue 280 Adventurer 4 Explorer 0 Win Type - Total 12 Types 7/1/1/1/0/1/0/0/0/1 Lore% 94 Gallery% 89 Achievement% 87 Wizard Run 0 Options --------- Layout 0 ASCII 0 Keyboard 0 Movement Numpad Keybinds 0 Fullscreen 2 Font 18/CogNarrow Map View 76x50 Zoom Use 0% Tactical HUD 1 Map Filters SHIFT_HUE(110) Filters SHIFT_HUE(250) Steam 1 RUN: aadd9bea-8915-423d-8825-c4b4f6a0489b